[Event "*** Titled Tuesday Blitz"]
[Site "Chess.com"]
[Date "2020.12.01"]
[Round "10"]
[White "StockholmMissile"]
[Black "Pelopidass"]
[Result "0-1"]
[WhiteElo "2393"]
[BlackElo "2571"]
[TimeControl "180+1"]
[EndTime "11:56:19 PST"]
[Termination "Pelopidass won on time"]

1. d4 {[%clk 0:02:56.5]} 1... e6 {[%clk 0:02:58.7]} 2. Nf3 {[%clk 0:02:53.6]}
2... Nf6 {[%clk 0:02:55.8]} 3. c4 {[%clk 0:02:52.9]} 3... Bb4+ {[%clk
0:02:54.7]} 4. Bd2 {[%clk 0:02:52.7]} 4... Qe7 {[%clk 0:02:54.7]} 5. g3 {[%clk
0:02:52.4]} 5... O-O {[%clk 0:02:52.3]} 6. Bg2 {[%clk 0:02:51.8]} 6... Bxd2+
{[%clk 0:02:52.8]} 7. Qxd2 {[%clk 0:02:51.3]} 7... d5 {[%clk 0:02:51.8]} 8. O-O
{[%clk 0:02:46.1]} 8... Nc6 {[%clk 0:02:50.9]} 9. cxd5 {[%clk 0:02:38.5]} 9...
exd5 {[%clk 0:02:51.8]} 10. Nc3 {[%clk 0:02:37.6]} 10... Re8 {[%clk 0:02:48.8]}
11. Rac1 {[%clk 0:02:34.7]} 11... Bf5 {[%clk 0:02:41.4]} 12. Rfe1 {[%clk
0:02:32.6]} 12... Rad8 {[%clk 0:02:39.9]} 13. Qf4 {[%clk 0:02:30.9]} 13... Be4
{[%clk 0:02:29.4]} 14. e3 {[%clk 0:02:12.4]} 14... h6 {[%clk 0:02:16.7]} 15. h4
{[%clk 0:02:10.5]} 15... Nb4 {[%clk 0:01:53.6]} 16. Nxe4 {[%clk 0:01:57.9]}
16... dxe4 {[%clk 0:01:42.8]} 17. Ne5 {[%clk 0:01:28.1]} 17... Nbd5 {[%clk
0:01:31.8]} 18. Qf5 {[%clk 0:01:27.3]} 18... g6 {[%clk 0:01:30.6]} 19. Qh3
{[%clk 0:01:27.1]} 19... c6 {[%clk 0:01:27.7]} 20. a3 {[%clk 0:01:24.7]} 20...
Nd7 {[%clk 0:01:18.9]} 21. Bxe4 {[%clk 0:01:15.2]} 21... Nxe5 {[%clk 0:01:18.3]}
22. dxe5 {[%clk 0:01:15.1]} 22... Qxe5 {[%clk 0:01:18.7]} 23. Bxd5 {[%clk
0:01:13.1]} 23... Rxd5 {[%clk 0:01:19.6]} 24. Rc2 {[%clk 0:01:12.8]} 24... Red8
{[%clk 0:01:18.7]} 25. Qg4 {[%clk 0:01:08.1]} 25... h5 {[%clk 0:01:15.4]} 26.
Qe2 {[%clk 0:01:00.6]} 26... Qe4 {[%clk 0:01:11.4]} 27. Rc4 {[%clk 0:00:59.2]}
27... Qe5 {[%clk 0:01:06.8]} 28. Rc2 {[%clk 0:00:58.8]} 28... c5 {[%clk
0:01:04.8]} 29. Rec1 {[%clk 0:00:57]} 29... b6 {[%clk 0:01:04.6]} 30. Qf3 {[%clk
0:00:54.7]} 30... Kg7 {[%clk 0:01:00.5]} 31. Qe2 {[%clk 0:00:53.2]} 31... R8d6
{[%clk 0:00:56.9]} 32. Kh2 {[%clk 0:00:46.1]} 32... Rd3 {[%clk 0:00:54.1]} 33.
Kg1 {[%clk 0:00:40.6]} 33... a5 {[%clk 0:00:47.4]} 34. Kh2 {[%clk 0:00:37.6]}
34... Qf5 {[%clk 0:00:41.4]} 35. Kg1 {[%clk 0:00:34]} 35... Rb3 {[%clk
0:00:39.4]} 36. Qc4 {[%clk 0:00:28.4]} 36... Rbd3 {[%clk 0:00:36.3]} 37. Qf4
{[%clk 0:00:27.4]} 37... Qxf4 {[%clk 0:00:34.8]} 38. gxf4 {[%clk 0:00:22.8]}
38... Rd2 {[%clk 0:00:33.3]} 39. Kg2 {[%clk 0:00:18.5]} 39... Kf6 {[%clk
0:00:33.4]} 40. Kf3 {[%clk 0:00:18.3]} 40... Ke6 {[%clk 0:00:30.3]} 41. Ke4
{[%clk 0:00:17.6]} 41... Rxc2 {[%clk 0:00:27.1]} 42. Rxc2 {[%clk 0:00:17]} 42...
Rd1 {[%clk 0:00:27.3]} 43. Kf3 {[%clk 0:00:16.9]} 43... Rh1 {[%clk 0:00:26.3]}
44. Kg3 {[%clk 0:00:16.8]} 44... Rb1 {[%clk 0:00:26.5]} 45. Rd2 {[%clk
0:00:16.8]} 45... a4 {[%clk 0:00:24.7]} 46. Rc2 {[%clk 0:00:15.1]} 46... Kd5
{[%clk 0:00:23.4]} 47. f5 {[%clk 0:00:11.3]} 47... b5 {[%clk 0:00:20.6]} 48. Kf4
{[%clk 0:00:10.1]} 48... c4 {[%clk 0:00:19.6]} 49. Kg5 {[%clk 0:00:07.4]} 49...
Rg1+ {[%clk 0:00:18.9]} 50. Kf6 {[%clk 0:00:07.7]} 50... Ke4 {[%clk 0:00:18.3]}
51. Rd2 {[%clk 0:00:04.7]} 51... gxf5 {[%clk 0:00:17.9]} 52. Rd4+ {[%clk
0:00:04.5]} 52... Kf3 {[%clk 0:00:18.2]} 53. Rf4+ {[%clk 0:00:04.5]} 53... Ke2
{[%clk 0:00:18.1]} 54. Rxf5 {[%clk 0:00:04.8]} 54... Rb1 {[%clk 0:00:18.2]} 55.
Rxh5 {[%clk 0:00:03.2]} 55... Rxb2 {[%clk 0:00:17.6]} 56. Rc5 {[%clk 0:00:02.3]}
56... Kd3 {[%clk 0:00:15.7]} 57. h5 {[%clk 0:00:02.4]} 57... Rxf2+ {[%clk
0:00:16.2]} 58. Kg7 {[%clk 0:00:02.6]} 58... c3 {[%clk 0:00:16.3]} 59. h6 {[%clk
0:00:02.6]} 59... c2 {[%clk 0:00:15.8]} 60. h7 {[%clk 0:00:02.8]} 60... Rg2+
{[%clk 0:00:16.3]} 61. Kxf7 {[%clk 0:00:02.9]} 61... Rh2 {[%clk 0:00:16.5]} 62.
Kg8 {[%clk 0:00:02.9]} 62... Kd2 {[%clk 0:00:16.4]} 63. e4 {[%clk 0:00:03.2]}
63... b4 {[%clk 0:00:15.6]} 64. e5 {[%clk 0:00:01.8]} 64... bxa3 {[%clk
0:00:15.4]} 65. e6 {[%clk 0:00:02.1]} 65... a2 {[%clk 0:00:15.8]} 66. e7 {[%clk
0:00:02.5]} 66... a1=Q {[%clk 0:00:16.2]} 67. e8=Q {[%clk 0:00:02.6]} 67... Qg1+
{[%clk 0:00:16.1]} 68. Kf8 {[%clk 0:00:01.9]} 68... Qxc5+ {[%clk 0:00:16.3]} 0-1

[Event "*** Titled Tuesday Blitz"]
[Site "Chess.com"]
[Date "2020.12.01"]
[Round "10"]
[White "Jospem"]
[Black "anon102030"]
[Result "1-0"]
[WhiteElo "2960"]
[BlackElo "2720"]
[TimeControl "180+1"]
[EndTime "11:56:23 PST"]
[Termination "Jospem won on time"]

1. e4 {[%clk 0:03:00.9]} 1... e5 {[%clk 0:02:58.2]} 2. Nf3 {[%clk 0:03:01.3]}
2... Nc6 {[%clk 0:02:58.5]} 3. Bb5 {[%clk 0:02:59]} 3... Nge7 {[%clk 0:02:58.1]}
4. c3 {[%clk 0:02:58.8]} 4... d6 {[%clk 0:02:58]} 5. d4 {[%clk 0:02:58.8]} 5...
Bd7 {[%clk 0:02:58.5]} 6. O-O {[%clk 0:02:58.3]} 6... Ng6 {[%clk 0:02:58]} 7.
Be3 {[%clk 0:02:54.7]} 7... Be7 {[%clk 0:02:58.3]} 8. Nbd2 {[%clk 0:02:54.8]}
8... O-O {[%clk 0:02:58.3]} 9. Re1 {[%clk 0:02:55]} 9... Nxd4 {[%clk 0:02:58.3]}
10. cxd4 {[%clk 0:02:51.6]} 10... Bxb5 {[%clk 0:02:57.3]} 11. Qb3 {[%clk
0:02:52.2]} 11... Ba6 {[%clk 0:02:54.3]} 12. Rac1 {[%clk 0:02:44.4]} 12... Kh8
{[%clk 0:02:44.2]} 13. Qc3 {[%clk 0:02:41.9]} 13... exd4 {[%clk 0:02:30]} 14.
Bxd4 {[%clk 0:02:41.7]} 14... f6 {[%clk 0:02:15.6]} 15. Qxc7 {[%clk 0:02:39.9]}
15... Nf4 {[%clk 0:02:01.1]} 16. Qxd8 {[%clk 0:02:20.6]} 16... Bxd8 {[%clk
0:02:02]} 17. Rcd1 {[%clk 0:02:02.4]} 17... Ne2+ {[%clk 0:01:16.7]} 18. Kh1
{[%clk 0:02:02]} 18... Nxd4 {[%clk 0:01:17.6]} 19. Nxd4 {[%clk 0:02:02.9]} 19...
Bb6 {[%clk 0:01:18.2]} 20. N2b3 {[%clk 0:01:56.4]} 20... Rac8 {[%clk 0:01:15.2]}
21. f3 {[%clk 0:01:52.4]} 21... Rfd8 {[%clk 0:01:12]} 22. Rd2 {[%clk 0:01:48.3]}
22... Bc4 {[%clk 0:01:05.5]} 23. Red1 {[%clk 0:01:48.6]} 23... a5 {[%clk
0:01:01.4]} 24. Nf5 {[%clk 0:01:21.9]} 24... Bxb3 {[%clk 0:01:00.9]} 25. axb3
{[%clk 0:01:20.5]} 25... Bc5 {[%clk 0:01:01.6]} 26. h4 {[%clk 0:01:03.6]} 26...
Bb4 {[%clk 0:01:01.6]} 27. Re2 {[%clk 0:01:04.2]} 27... g6 {[%clk 0:01:01.8]}
28. Ne7 {[%clk 0:01:03.9]} 28... Rc5 {[%clk 0:00:54.3]} 29. Nd5 {[%clk
0:01:01.5]} 29... Kg7 {[%clk 0:00:50.3]} 30. Nxb4 {[%clk 0:00:58.4]} 30... axb4
{[%clk 0:00:51.2]} 31. Rd4 {[%clk 0:00:59]} 31... Rb5 {[%clk 0:00:36.7]} 32. Rc2
{[%clk 0:00:56.1]} 32... Rd7 {[%clk 0:00:25.6]} 33. Kg1 {[%clk 0:00:53.5]} 33...
Kf7 {[%clk 0:00:21.4]} 34. Rcc4 {[%clk 0:00:52.8]} 34... Ke6 {[%clk 0:00:21.6]}
35. Rxb4 {[%clk 0:00:53]} 35... Rh5 {[%clk 0:00:17.6]} 36. g3 {[%clk 0:00:47.5]}
36... b5 {[%clk 0:00:16.3]} 37. Rd2 {[%clk 0:00:42]} 37... Rc5 {[%clk
0:00:15.9]} 38. Rbd4 {[%clk 0:00:41.7]} 38... Rc6 {[%clk 0:00:13.8]} 39. Kg2
{[%clk 0:00:41.4]} 39... Ra7 {[%clk 0:00:13.8]} 40. Rd5 {[%clk 0:00:41.1]} 40...
b4 {[%clk 0:00:12.5]} 41. Rb5 {[%clk 0:00:36.5]} 41... Ra1 {[%clk 0:00:10.7]}
42. Rxb4 {[%clk 0:00:36.9]} 42... Rcc1 {[%clk 0:00:10.5]} 43. Rbd4 {[%clk
0:00:30.5]} 43... Rc6 {[%clk 0:00:08.5]} 44. Rc4 {[%clk 0:00:23.3]} 44... Rb6
{[%clk 0:00:07.8]} 45. Rc3 {[%clk 0:00:24]} 45... Ra5 {[%clk 0:00:07.4]} 46. g4
{[%clk 0:00:23.9]} 46... Rab5 {[%clk 0:00:07.4]} 47. Rdd3 {[%clk 0:00:24.6]}
47... h5 {[%clk 0:00:07.3]} 48. Kg3 {[%clk 0:00:18]} 48... hxg4 {[%clk
0:00:07.6]} 49. Kxg4 {[%clk 0:00:18.9]} 49... Rb4 {[%clk 0:00:08.3]} 50. Kg3
{[%clk 0:00:18.8]} 50... R4b5 {[%clk 0:00:08.7]} 51. Re3 {[%clk 0:00:17.2]}
51... Rb4 {[%clk 0:00:08.8]} 52. Kf2 {[%clk 0:00:17]} 52... Ke5 {[%clk
0:00:08.1]} 53. Rcd3 {[%clk 0:00:16]} 53... R4b5 {[%clk 0:00:07.5]} 54. Kg3
{[%clk 0:00:15.9]} 54... Ke6 {[%clk 0:00:07.8]} 55. f4 {[%clk 0:00:16.8]} 55...
Rb4 {[%clk 0:00:07.1]} 56. Kg4 {[%clk 0:00:16.3]} 56... R6b5 {[%clk 0:00:05]}
57. Rc3 {[%clk 0:00:11]} 57... Rb6 {[%clk 0:00:04.1]} 58. h5 {[%clk 0:00:10]}
58... gxh5+ {[%clk 0:00:02.8]} 59. Kxh5 {[%clk 0:00:10.9]} 59... R6b5+ {[%clk
0:00:03.2]} 60. Kg4 {[%clk 0:00:11.1]} 60... Rb8 {[%clk 0:00:04.1]} 61. Rc7
{[%clk 0:00:06.6]} 61... Rxb3 {[%clk 0:00:01.6]} 62. Rxb3 {[%clk 0:00:02.4]}
62... Rxb3 {[%clk 0:00:02.5]} 63. Rc2 {[%clk 0:00:03]} 63... Rb4 {[%clk
0:00:01.8]} 64. Re2 {[%clk 0:00:03.1]} 1-0

[Event "*** Titled Tuesday Blitz"]
[Site "Chess.com"]
[Date "2020.12.01"]
[Round "10"]
[White "Gudmundur_Kjartansson"]
[Black "Chesswizard_2007"]
[Result "1/2-1/2"]
[WhiteElo "2566"]
[BlackElo "2671"]
[TimeControl "180+1"]
[EndTime "11:56:23 PST"]
[Termination "Game drawn by stalemate"]

1. d4 {[%clk 0:03:00.9]} 1... Nf6 {[%clk 0:02:57.1]} 2. c4 {[%clk 0:03:01.4]}
2... c5 {[%clk 0:02:57.4]} 3. d5 {[%clk 0:03:01.1]} 3... a6 {[%clk 0:02:58]} 4.
f3 {[%clk 0:02:58.7]} 4... e5 {[%clk 0:02:42.4]} 5. e4 {[%clk 0:02:56.2]} 5...
d6 {[%clk 0:02:41.3]} 6. Nc3 {[%clk 0:02:56.2]} 6... Be7 {[%clk 0:02:40.4]} 7.
Bd3 {[%clk 0:02:55.6]} 7... O-O {[%clk 0:02:39.6]} 8. Nge2 {[%clk 0:02:55.8]}
8... Nbd7 {[%clk 0:02:33.8]} 9. h4 {[%clk 0:02:50.8]} 9... Re8 {[%clk
0:02:33.9]} 10. Be3 {[%clk 0:02:49.3]} 10... Nf8 {[%clk 0:02:26.4]} 11. Qd2
{[%clk 0:02:38.5]} 11... Bd7 {[%clk 0:02:25.9]} 12. a4 {[%clk 0:02:35.7]} 12...
Qa5 {[%clk 0:02:08.9]} 13. g4 {[%clk 0:02:26.2]} 13... Reb8 {[%clk 0:02:04.4]}
14. Kf2 {[%clk 0:02:18.2]} 14... Qb4 {[%clk 0:01:54]} 15. h5 {[%clk 0:02:16]}
15... Ne8 {[%clk 0:01:48.8]} 16. g5 {[%clk 0:02:08.5]} 16... Bd8 {[%clk
0:01:40.4]} 17. f4 {[%clk 0:02:03.1]} 17... exf4 {[%clk 0:01:34.6]} 18. Bxf4
{[%clk 0:02:02.9]} 18... Ba5 {[%clk 0:01:30.9]} 19. e5 {[%clk 0:01:56.8]} 19...
Bc7 {[%clk 0:01:16.2]} 20. e6 {[%clk 0:01:51.6]} 20... fxe6 {[%clk 0:01:13.1]}
21. dxe6 {[%clk 0:01:20.3]} 21... Bxe6 {[%clk 0:01:14]} 22. Nd5 {[%clk
0:00:33.4]} 22... Bxd5 {[%clk 0:01:11.1]} 23. Qxb4 {[%clk 0:00:32.2]} 23... cxb4
{[%clk 0:01:06.7]} 24. cxd5 {[%clk 0:00:32.7]} 24... Nd7 {[%clk 0:01:04.4]} 25.
Bf5 {[%clk 0:00:26.9]} 25... Nc5 {[%clk 0:01:01.5]} 26. Nd4 {[%clk 0:00:24.4]}
26... Bb6 {[%clk 0:01:01.6]} 27. Kg3 {[%clk 0:00:21.5]} 27... Ne4+ {[%clk
0:00:56.3]} 28. Bxe4 {[%clk 0:00:20.5]} 28... Bxd4 {[%clk 0:00:57.2]} 29. Rab1
{[%clk 0:00:18.8]} 29... Be5 {[%clk 0:00:56.8]} 30. Bxe5 {[%clk 0:00:18.7]}
30... dxe5 {[%clk 0:00:57.7]} 31. Bf5 {[%clk 0:00:19.1]} 31... Nd6 {[%clk
0:00:55.3]} 32. Be6+ {[%clk 0:00:19.5]} 32... Kh8 {[%clk 0:00:55.8]} 33. Rhe1
{[%clk 0:00:19.6]} 33... e4 {[%clk 0:00:56]} 34. Kf4 {[%clk 0:00:19.2]} 34...
Rf8+ {[%clk 0:00:55.4]} 35. Ke5 {[%clk 0:00:19.7]} 35... Nc4+ {[%clk 0:00:55.7]}
36. Kd4 {[%clk 0:00:18.9]} 36... Nd2 {[%clk 0:00:53.2]} 37. Rbd1 {[%clk
0:00:15.6]} 37... Nf3+ {[%clk 0:00:53]} 38. Kxe4 {[%clk 0:00:16.3]} 38... Nxe1
{[%clk 0:00:50.3]} 39. Rxe1 {[%clk 0:00:16.8]} 39... b5 {[%clk 0:00:50.1]} 40.
axb5 {[%clk 0:00:15.6]} 40... axb5 {[%clk 0:00:51]} 41. d6 {[%clk 0:00:15.6]}
41... Rfe8 {[%clk 0:00:49.4]} 42. Kd5 {[%clk 0:00:15.5]} 42... Rad8 {[%clk
0:00:34.4]} 43. Rc1 {[%clk 0:00:12.9]} 43... Rf8 {[%clk 0:00:34.8]} 44. d7
{[%clk 0:00:12.5]} 44... h6 {[%clk 0:00:27.9]} 45. g6 {[%clk 0:00:12.4]} 45...
b3 {[%clk 0:00:23.4]} 46. Kd6 {[%clk 0:00:11.9]} 46... b4 {[%clk 0:00:21.3]} 47.
Ke7 {[%clk 0:00:11.7]} 47... Rde8+ {[%clk 0:00:05.1]} 48. Kd6 {[%clk 0:00:04.9]}
48... Rd8 {[%clk 0:00:05.9]} 49. Rc8 {[%clk 0:00:04.1]} 49... Rfe8 {[%clk
0:00:03.2]} 50. Rxd8 {[%clk 0:00:02.8]} 50... Rxd8 {[%clk 0:00:04.1]} 51. Kc7
{[%clk 0:00:03.2]} 51... Rf8 {[%clk 0:00:04.3]} 52. Bf7 {[%clk 0:00:03.4]} 52...
Ra8 {[%clk 0:00:01.6]} 53. Be8 {[%clk 0:00:03.5]} 53... Kg8 {[%clk 0:00:01.8]}
54. d8=Q {[%clk 0:00:03.3]} 54... Rxd8 {[%clk 0:00:02]} 55. Kxd8 {[%clk
0:00:04]} 55... Kf8 {[%clk 0:00:02.9]} 56. Bc6 {[%clk 0:00:04]} 56... Kg8 {[%clk
0:00:03.2]} 57. Ba4 {[%clk 0:00:04.1]} 57... Kf8 {[%clk 0:00:04.1]} 58. Kd7
{[%clk 0:00:04.1]} 58... Kg8 {[%clk 0:00:04.4]} 59. Bxb3+ {[%clk 0:00:04.6]}
59... Kh8 {[%clk 0:00:05.3]} 60. Ba4 {[%clk 0:00:05]} 60... Kg8 {[%clk
0:00:06.2]} 61. Ke7 {[%clk 0:00:05]} 61... Kh8 {[%clk 0:00:06.5]} 62. Kd6 {[%clk
0:00:05.6]} 62... b3 {[%clk 0:00:07.3]} 63. Kc5 {[%clk 0:00:05.8]} 63... Kg8
{[%clk 0:00:07.9]} 64. Bxb3+ {[%clk 0:00:06.5]} 64... Kf8 {[%clk 0:00:08.8]} 65.
Bd5 {[%clk 0:00:06.9]} 65... Ke7 {[%clk 0:00:09.7]} 66. b4 {[%clk 0:00:06.8]}
66... Kf6 {[%clk 0:00:10.6]} 67. b5 {[%clk 0:00:07.1]} 67... Kg5 {[%clk
0:00:11.5]} 68. Bf3 {[%clk 0:00:06.6]} 68... Kf4 {[%clk 0:00:11.5]} 69. Bd1
{[%clk 0:00:06.7]} 69... Kg5 {[%clk 0:00:11.6]} 70. b6 {[%clk 0:00:07.2]} 70...
Kh4 {[%clk 0:00:12.5]} 71. b7 {[%clk 0:00:07.7]} 71... Kg3 {[%clk 0:00:13.4]}
72. b8=Q+ {[%clk 0:00:08.2]} 72... Kf2 {[%clk 0:00:14.3]} 73. Qf4+ {[%clk
0:00:08.2]} 73... Ke1 {[%clk 0:00:15.2]} 74. Bg4 {[%clk 0:00:07.6]} 1/2-1/2

[Event "*** Titled Tuesday Blitz"]
[Site "Chess.com"]
[Date "2020.12.01"]
[Round "10"]
[White "Duhless"]
[Black "SantoBlue"]
[Result "1-0"]
[WhiteElo "3025"]
[BlackElo "2897"]
[TimeControl "180+1"]
[EndTime "11:56:24 PST"]
[Termination "Duhless won by resignation"]

1. d4 {[%clk 0:03:00.9]} 1... Nf6 {[%clk 0:03:00]} 2. Nf3 {[%clk 0:03:00.7]}
2... g6 {[%clk 0:02:57.3]} 3. c4 {[%clk 0:02:56.8]} 3... Bg7 {[%clk 0:02:57.5]}
4. Nc3 {[%clk 0:02:56.2]} 4... O-O {[%clk 0:02:57.6]} 5. e4 {[%clk 0:02:55.5]}
5... d6 {[%clk 0:02:58.1]} 6. Be2 {[%clk 0:02:56.1]} 6... e5 {[%clk 0:02:58.1]}
7. O-O {[%clk 0:02:56.2]} 7... Nc6 {[%clk 0:02:58.2]} 8. d5 {[%clk 0:02:56.4]}
8... Ne7 {[%clk 0:02:58.4]} 9. b4 {[%clk 0:02:57]} 9... Nh5 {[%clk 0:02:58.6]}
10. c5 {[%clk 0:02:57]} 10... Nf4 {[%clk 0:02:57.3]} 11. Bxf4 {[%clk 0:02:56.4]}
11... exf4 {[%clk 0:02:57.4]} 12. Rc1 {[%clk 0:02:57]} 12... a5 {[%clk 0:02:53]}
13. cxd6 {[%clk 0:02:53.2]} 13... cxd6 {[%clk 0:02:52.7]} 14. bxa5 {[%clk
0:02:51.9]} 14... Rxa5 {[%clk 0:02:49.3]} 15. Qd2 {[%clk 0:02:50.7]} 15... Bg4
{[%clk 0:02:14.4]} 16. Qxf4 {[%clk 0:02:31.8]} 16... Bxf3 {[%clk 0:02:13.1]} 17.
Bxf3 {[%clk 0:02:31.8]} 17... Rc5 {[%clk 0:02:01.5]} 18. Ne2 {[%clk 0:02:23.5]}
18... Be5 {[%clk 0:01:53.8]} 19. Qe3 {[%clk 0:02:19.2]} 19... Qa5 {[%clk
0:01:47.1]} 20. Rxc5 {[%clk 0:02:15.3]} 20... dxc5 {[%clk 0:01:47.3]} 21. Bg4
{[%clk 0:02:11.8]} 21... c4 {[%clk 0:01:39.5]} 22. f4 {[%clk 0:02:03]} 22... Bd6
{[%clk 0:01:39.4]} 23. Kh1 {[%clk 0:02:02]} 23... Bc5 {[%clk 0:01:28.4]} 24. Qf3
{[%clk 0:01:53.2]} 24... Qxa2 {[%clk 0:01:18.9]} 25. f5 {[%clk 0:01:11.5]} 25...
Qd2 {[%clk 0:00:55.9]} 26. f6 {[%clk 0:01:06.8]} 26... Nxd5 {[%clk 0:00:51.2]}
27. exd5 {[%clk 0:01:05.2]} 27... b5 {[%clk 0:00:51.3]} 28. Ng3 {[%clk
0:00:59.7]} 28... Qd4 {[%clk 0:00:28.9]} 29. Rd1 {[%clk 0:00:50.7]} 29... Qe5
{[%clk 0:00:27.7]} 30. Ne4 {[%clk 0:00:50.2]} 30... Bd4 {[%clk 0:00:24.1]} 31.
d6 {[%clk 0:00:27.7]} 31... b4 {[%clk 0:00:24.3]} 32. d7 {[%clk 0:00:26.9]}
32... c3 {[%clk 0:00:24.7]} 33. Qd3 {[%clk 0:00:21.9]} 33... b3 {[%clk
0:00:25.1]} 34. Nxc3 {[%clk 0:00:20.6]} 34... Bb6 {[%clk 0:00:15.1]} 35. d8=Q
{[%clk 0:00:15.5]} 35... Bxd8 {[%clk 0:00:09.1]} 36. Qxd8 {[%clk 0:00:15.4]}
36... Re8 {[%clk 0:00:10]} 37. h3 {[%clk 0:00:09.2]} 37... b2 {[%clk 0:00:09]}
38. Qd2 {[%clk 0:00:07.4]} 38... h5 {[%clk 0:00:09]} 39. Bf3 {[%clk 0:00:07]}
39... Rb8 {[%clk 0:00:09.6]} 40. Nb1 {[%clk 0:00:05.7]} 40... Qxf6 {[%clk
0:00:09.7]} 41. Qc3 {[%clk 0:00:05.9]} 41... Qf4 {[%clk 0:00:07.7]} 42. Qd4
{[%clk 0:00:05.5]} 42... Qc1 {[%clk 0:00:07.1]} 43. Kh2 {[%clk 0:00:04.7]} 43...
Re8 {[%clk 0:00:06.8]} 44. Qd3 {[%clk 0:00:04.5]} 44... Qc7+ {[%clk 0:00:06.2]}
45. Kh1 {[%clk 0:00:04.2]} 45... Qe5 {[%clk 0:00:06.8]} 46. Qd2 {[%clk 0:00:04]}
46... Rb8 {[%clk 0:00:07.2]} 47. Nc3 {[%clk 0:00:04.3]} 47... h4 {[%clk
0:00:06]} 48. Rb1 {[%clk 0:00:04.3]} 48... Rc8 {[%clk 0:00:04.5]} 49. Ne4 {[%clk
0:00:04.4]} 49... Rb8 {[%clk 0:00:04.4]} 50. Qd6 {[%clk 0:00:04]} 50... Qb5
{[%clk 0:00:03.9]} 51. Nf6+ {[%clk 0:00:03.7]} 51... Kg7 {[%clk 0:00:04.5]} 52.
Ng4 {[%clk 0:00:04.6]} 52... Qb4 {[%clk 0:00:04.2]} 53. Qf6+ {[%clk 0:00:04.5]}
53... Kh7 {[%clk 0:00:04.2]} 54. Qxh4+ {[%clk 0:00:04.6]} 54... Kg7 {[%clk
0:00:04.6]} 55. Qf6+ {[%clk 0:00:05.3]} 55... Kg8 {[%clk 0:00:05.3]} 56. Nh6+
{[%clk 0:00:05.5]} 56... Kh7 {[%clk 0:00:05.9]} 57. Nxf7 {[%clk 0:00:06.1]}
57... Qd2 {[%clk 0:00:06.5]} 58. Ng5+ {[%clk 0:00:06.1]} 58... Kh6 {[%clk
0:00:07.4]} 59. Nf7+ {[%clk 0:00:06.1]} 59... Kh7 {[%clk 0:00:08.2]} 60. Qh4+
{[%clk 0:00:06.1]} 60... Kg7 {[%clk 0:00:08.7]} 61. Qh6+ {[%clk 0:00:03.6]}
61... Kxf7 {[%clk 0:00:08.7]} 62. Qxd2 {[%clk 0:00:02.4]} 62... Rd8 {[%clk
0:00:09.2]} 63. Qf2 {[%clk 0:00:03.3]} 63... Kg7 {[%clk 0:00:09.4]} 64. Be2
{[%clk 0:00:03.6]} 64... Re8 {[%clk 0:00:09.7]} 65. Rxb2 {[%clk 0:00:03.9]}
65... Rf8 {[%clk 0:00:10.1]} 66. Qd4+ {[%clk 0:00:04.4]} 66... Kh7 {[%clk
0:00:10.9]} 67. Rb7+ {[%clk 0:00:04.8]} 67... Rf7 {[%clk 0:00:11.8]} 68. Qh4+
{[%clk 0:00:04.8]} 68... Kg7 {[%clk 0:00:12]} 69. Rxf7+ {[%clk 0:00:05.7]} 69...
Kxf7 {[%clk 0:00:12.9]} 70. Bc4+ {[%clk 0:00:06.3]} 1-0